bitfinex-derivatives/quotes_SOLF0:USTF0_20260204
["timestamp","ask_amount","ask_price","bid_price","bid_amount"]
[1770218843286,3.82567219,93.631,93.53,1.033704]
[1770218843993,3.92123403,93.63,93.53,1.033704]
[1770218845184,3.92123403,93.63,93.557,9.6346]
[1770218845386,3.92123403,93.63,93.53,1.033704]
[1770218845690,3.92123403,93.63,93.555,9.6349]
[1770218845887,3.92123403,93.63,93.53,1.033704]
[1770218846195,3.95428104,93.627,93.53,1.033704]
[1770218846994,3.95428104,93.627,93.553,9.6351]
[1770218847588,3.95428104,93.627,93.563,9.634]
[1770218847994,3.95428104,93.627,93.53,1.033704]
[1770218847995,3.95428104,93.627,93.548,9.6355]
[1770218848496,3.95428104,93.627,93.53,1.033704]
[1770218848793,3.95291683,93.615,93.537,9.6367]
[1770218848996,3.95291683,93.615,93.53,1.033704]
[1770218849391,3.95291683,93.613,93.507,0.10512104]
[1770218849592,3.95291683,93.613,93.482,0.10512104]
[1770218849997,3.97733501,93.582,93.482,0.10512104]
[1770218851197,3.97733501,93.56,93.484,9.6422]
[1770218851390,3.97733501,93.56,93.459,0.05628469]
[1770218852198,3.97733501,93.56,93.42,19.52280013]
[1770218852394,4.01263247,93.553,93.47,9.6435]
[1770218852598,4.01263247,93.539,93.42,7.85105661]
[1770218853495,4.01263247,93.519,93.4,7.85105661]
[1770218853895,4.00387612,93.497,93.38,7.85105661]
[1770218854497,4.00387612,93.494,93.405,9.6503]
[1770218855199,4.00387612,93.494,93.416,9.6492]
[1770218855395,4.00387612,93.494,93.38,7.85105661]
[1770218855804,4.0234416,93.479,93.36,7.85105661]
[1770218856403,4.0234416,93.475,93.38,9.6529]
[1770218856700,4.0234416,93.459,93.34,13.85105661]
[1770218856907,4.0234416,93.456,93.369,9.654]
[1770218857308,4.0234416,93.456,93.34,7.85105661]
[1770218857702,4.0234416,93.456,93.38,9.6529]
[1770218857898,4.0234416,93.456,93.34,7.85105661]
[1770218858303,4.0234416,93.456,93.32,220.44]
[1770218858304,4.0234416,93.456,93.36,7.85105661]
[1770218858503,4.0234416,93.456,93.34,7.85105661]
[1770218858920,4.01273493,93.454,93.36,9.6549]
[1770218859202,4.01273493,93.454,93.34,7.85105661]
[1770218859403,4.01273493,93.454,93.381,9.6527]
[1770218859805,4.01273493,93.454,93.34,7.85105661]
[1770218860005,4.02569527,93.449,93.366,9.6543]
[1770218860206,4.02569527,93.449,93.34,7.85105661]
[1770218860402,4.02569527,93.436,93.354,9.6555]
[1770218862111,4.02569527,93.436,93.365,9.6544]
[1770218862713,4.02569527,93.436,93.353,9.6556]
[1770218862908,4.04761218,93.429,93.32,7.85105661]
[1770218863111,4.04761218,93.409,93.29,7.85105661]
[1770218863311,4.04761218,93.389,93.307,9.6605]
[1770218863512,4.04761218,93.389,93.27,7.85105661]
[1770218863914,4.04761218,93.389,93.29,7.85105661]
[1770218864509,4.04761218,93.389,93.31,9.6601]
[1770218864711,4.04761218,93.389,93.29,7.85105661]
[1770218865605,4.04761218,93.389,93.32,9.6591]
[1770218866404,4.04761218,93.389,93.29,7.85105661]
[1770218867211,4.00728811,93.411,93.31,7.85105661]
[1770218867615,4.00728811,93.411,93.337,9.6574]
[1770218867816,4.00728811,93.411,93.3,7.85105661]
[1770218868217,4.00728811,93.411,93.336,9.6574]
[1770218868418,4.00728811,93.411,93.3,7.85105661]
[1770218868714,4.00728811,93.411,93.343,9.6567]
[1770218869417,4.00728811,93.411,93.32,7.85105661]
[1770218870518,4.00728811,93.411,93.345,9.6565]
[1770218870813,4.00728811,93.411,93.32,7.85105661]
[1770218871719,4.13758909,93.439,93.34,7.85105661]
[1770218872221,4.13758909,93.437,93.34,7.85105661]
[1770218872519,4.13758909,93.437,93.32,7.85105661]
[1770218872918,4.13758909,93.424,93.34,9.657]
[1770218873110,4.13758909,93.424,93.32,7.85105661]
[1770218873315,4.13758909,93.396,93.28,7.85105661]
[1770218873913,4.15506688,93.385,93.308,9.6603]
[1770218874214,4.15506688,93.379,93.26,7.85105661]
[1770218874417,9.6543,93.367,93.26,7.85105661]
[1770218874616,4.15506688,93.366,93.26,7.85105661]
[1770218874817,4.15506688,93.366,93.28,7.85105661]
[1770218875217,4.15506688,93.366,93.285,9.6628]
[1770218875521,4.15506688,93.359,93.23,7.85105661]
[1770218875717,4.15506688,93.359,93.25,7.85105661]
[1770218876021,4.15506688,93.359,93.27,7.85105661]
[1770218876224,4.15506688,93.359,93.296,9.6616]
[1770218876517,4.15506688,93.359,93.25,7.85105661]
[1770218876716,4.15506688,93.359,93.27,7.85105661]
[1770218877221,4.15506688,93.359,93.294,9.6618]
[1770218877620,4.15506688,93.359,93.27,7.85105661]
[1770218877816,4.15506688,93.359,93.279,9.6633]
[1770218878217,4.15506688,93.359,93.25,7.85105661]
[1770218879320,4.17989842,93.357,93.266,9.6647]
[1770218879717,4.17989842,93.357,93.03,32.51585931]
[1770218879718,4.18041915,93.342,93.256,9.6657]
[1770218879921,4.18041915,93.342,93.23,7.85105661]
[1770218880322,4.18041915,93.342,93.217,1.86531164]
[1770218880323,4.18041915,93.342,93.275,9.6637]
[1770218880622,4.18041915,93.359,93.25,7.85105661]
[1770218880818,7.85105661,93.36,93.25,7.85105661]
[1770218880819,4.18041915,93.358,93.265,9.6648]
[1770218881017,4.18041915,93.358,93.214,219.42]
[1770218881018,4.18041915,93.339,93.22,7.85105661]
[1770218881215,4.18041915,93.337,93.253,9.666]
[1770218881426,4.18041915,93.337,93.22,7.85105661]
[1770218881722,150.1607,93.378,93.185,219.34]
[1770218881723,4.20998513,93.319,93.2,7.85105661]
[1770218881921,4.20998513,93.319,93.221,9.6693]
[1770218882317,4.20998513,93.299,93.18,7.85105661]
[1770218882517,4.20998513,93.299,93.18,13.85105661]
[1770218882717,4.20998513,93.284,93.208,9.6707]
[1770218883119,19.3106,93.358,93.14,2.37692143]
[1770218883120,3.65339291,93.239,93.14,2.37692143]
[1770218883315,3.65339291,93.218,93.116,2.37692143]
[1770218883823,3.65339291,93.205,93.116,12.05722143]
[1770218884214,3.65339291,93.205,93.127,9.6791]
[1770218884419,3.65339291,93.205,93.116,2.37692143]
[1770218884824,3.65339291,93.204,93.116,2.37692143]
[1770218885526,3.65339291,93.199,93.111,9.6807]
[1770218885723,3.65339291,93.199,93.093,2.29845872]
[1770218886620,3.65339291,93.199,93.08,7.85105661]
[1770218886822,3.65339291,93.17,93.08,7.85105661]
[1770218887018,3.65339291,93.17,93.069,2.19617429]
[1770218887321,3.65339291,93.17,93.081,2.19617429]
[1770218887525,3.65339291,93.213,93.101,2.19617429]
[1770218887729,3.65339291,93.213,93.121,2.14214175]
[1770218888420,3.65339291,93.211,93.121,2.14214175]
[1770218888826,3.65339291,93.211,93.141,2.14214175]
[1770218889030,3.65339291,93.233,93.141,2.14214175]
[1770218889723,3.65339291,93.231,93.141,2.14214175]
[1770218890819,3.65339291,93.231,93.16,10.0699022]
[1770218891222,3.65339291,93.231,93.12,7.85105661]
[1770218891426,3.65339291,93.212,93.111,2.21884559]
[1770218891625,3.65339291,93.212,93.1,7.85105661]
[1770218891824,3.65339291,93.206,93.101,2.14531953]
[1770218892329,3.65339291,93.177,93.101,2.14531953]
[1770218893331,9.6742,93.176,93.101,2.14531953]
[1770218893521,3.65339291,93.177,93.101,2.14531953]
[1770218893721,3.65339291,93.177,93.072,2.04645473]
[1770218894122,3.65339291,93.174,93.073,2.04645473]
[1770218894324,3.65339291,93.174,93.091,2.04645473]
[1770218894726,3.65339291,93.174,93.095,9.6825]
[1770218894931,3.65339291,93.174,93.091,2.04645473]
[1770218895429,3.65339291,93.174,93.093,2.04645473]
[1770218895635,32.08,93.217,93.131,2.1641594]
[1770218895830,3.65339291,93.222,93.15,7.85105661]
[1770218896031,3.65339291,93.222,93.131,2.1641594]
[1770218896425,3.65339291,93.222,93.11,7.85105661]
[1770218896634,3.65339291,93.21,93.112,9.6807]
[1770218896934,3.65339291,93.21,93.112,2.1641594]
[1770218897134,3.65339291,93.209,93.112,2.1641594]
[1770218897728,9.6728,93.189,93.112,2.1641594]
[1770218897932,3.65339291,93.209,93.112,2.1641594]
[1770218898328,3.65339291,93.196,93.11,7.85105661]
[1770218898833,3.65339291,93.196,93.092,1.886114]
[1770218899337,3.65339291,93.193,93.092,1.886114]
[1770218900439,3.65339291,93.193,93.121,9.6797]
[1770218901242,3.65339291,93.193,93.121,11.65925294]
[1770218901439,3.65339291,93.193,93.131,9.6787]
[1770218901740,150.2802,93.304,93.131,9.6787]
[1770218901741,3.65339291,93.229,93.131,1.97955294]
[1770218902041,3.65339291,93.229,93.151,2.00782677]
[1770218902736,3.65339291,93.229,93.153,9.6764]
[1770218902932,3.65339291,93.229,93.151,2.00782677]
[1770218903338,3.65339291,93.253,93.171,2.00782677]
[1770218903638,3.65339291,93.253,93.17,7.90814281]
[1770218903639,3.73918108,93.289,93.191,2.03151497]
[1770218903835,3.73918108,93.286,93.202,9.6713]
[1770218904040,3.73918108,93.286,93.211,2.03151497]
[1770218904239,3.73918108,93.286,93.184,2.03151497]
[1770218904834,3.73918108,93.262,93.185,9.6731]
[1770218905138,3.73918108,93.262,93.184,2.03151497]
[1770218905344,3.73918108,93.261,93.185,9.6731]
[1770218905642,3.73918108,93.288,93.186,1.95930868]
[1770218905838,3.73918108,93.304,93.232,9.6682]
[1770218906341,3.73918108,93.304,93.231,1.95930868]
[1770218907438,9.661,93.302,93.231,1.95930868]
[1770218907640,3.73918108,93.304,93.231,1.95930868]
[1770218907940,3.73918108,93.336,93.254,9.6659]
[1770218908139,3.73918108,93.336,93.241,1.93303219]
[1770218908841,3.73918108,93.323,93.245,1.93303219]
[1770218909742,3.73918108,93.323,93.251,1.96320712]
[1770218909941,3.73918108,93.359,93.251,1.96320712]
[1770218910142,7.90814281,93.38,93.271,1.96320712]
[1770218910143,3.73918108,93.352,93.271,1.96320712]
[1770218910345,3.73918108,93.352,93.246,1.96320712]
[1770218910643,3.73918108,93.331,93.223,1.96320712]
[1770218910848,7.90814281,93.34,93.223,1.96320712]
[1770218910849,3.73918108,93.319,93.223,1.96320712]
[1770218911458,3.73918108,93.319,93.243,9.667]
[1770218911650,3.73918108,93.319,93.231,1.96320712]
[1770218912246,3.73918108,93.319,93.253,9.666]
[1770218912548,3.73918108,93.319,93.211,1.98432497]
[1770218913141,3.73918108,93.316,93.231,9.6683]
[1770218913744,3.73918108,93.316,93.24,9.6673]
[1770218914043,3.73918108,93.316,93.211,1.98432497]
[1770218914044,3.73918108,93.312,93.211,1.98432497]
[1770218914947,3.73918108,93.31,93.211,1.98432497]
[1770218915642,3.73918108,93.297,93.191,1.94423485]
[1770218916045,3.73918108,93.279,93.191,1.94423485]
[1770218916245,3.73918108,93.279,93.199,9.6716]
[1770218916449,3.73918108,93.279,93.191,1.94423485]
[1770218916948,3.73918108,93.278,93.197,9.6718]
[1770218917341,3.73918108,93.278,93.191,1.94423485]
[1770218917745,3.73918108,93.278,93.216,9.6698]
[1770218918342,3.73918108,93.278,93.225,9.6689]
[1770218918550,3.73918108,93.278,93.191,1.94423485]
[1770218918846,3.73918108,93.311,93.215,1.90984668]
[1770218919348,3.73918108,93.309,93.232,9.6682]
[1770218919846,3.73918108,93.307,93.232,9.6682]
[1770218920245,3.73918108,93.307,93.233,1.90588029]
[1770218920445,3.73918108,93.334,93.233,1.90588029]
[1770218920946,3.73918108,93.322,93.233,1.90588029]
[1770218921345,3.73918108,93.309,93.233,1.90588029]
[1770218921546,3.73918108,93.307,93.229,9.6685]
[1770218921745,3.73918108,93.307,93.201,1.90588029]
[1770218922156,3.73918108,93.285,93.209,9.6706]
[1770218923249,3.73918108,93.285,93.218,9.6697]
[1770218923854,3.73918108,93.284,93.218,9.6697]
[1770218924349,3.73918108,93.284,93.229,9.6686]
[1770218924554,3.73918108,93.284,93.201,1.90588029]
[1770218925056,3.73918108,93.28,93.201,1.90588029]
[1770218925257,3.73918108,93.269,93.161,1.88813034]
[1770218925455,3.73918108,93.259,93.191,9.6724]
[1770218925656,3.73918108,93.259,93.161,1.88813034]
[1770218926345,3.73918108,93.258,93.191,9.6725]
[1770218926550,3.73918108,93.258,93.181,1.85465161]
[1770218927450,3.73918108,93.258,93.189,9.6727]
[1770218928057,3.73918108,93.258,93.181,1.85465161]
[1770218929657,3.73918108,93.258,93.183,9.6733]
[1770218930052,3.73918108,93.258,93.184,2.16946338]
[1770218930252,3.73918108,93.258,93.19,9.6726]
[1770218930555,3.73918108,93.258,93.184,2.16946338]
[1770218931152,3.73918108,93.258,93.187,9.6729]
[1770218931350,3.73918108,93.258,93.184,2.16946338]
[1770218931955,3.73918108,93.258,93.195,9.672]
[1770218932664,3.73918108,93.258,93.203,9.6712]
[1770218933567,3.73918108,93.281,93.213,9.6702]
[1770218933863,7.90814281,93.29,93.184,2.16946338]
[1770218933864,3.89547695,93.278,93.184,2.16946338]
[1770218934260,3.89547695,93.278,93.193,9.6722]
[1770218935457,3.89547695,93.269,93.193,9.6722]
[1770218935957,3.89547695,93.264,93.185,2.27204827]
[1770218936357,3.89547695,93.251,93.185,2.27204827]
[1770218936561,3.89547695,93.249,93.164,2.27204827]
[1770218937867,3.96345198,93.239,93.175,9.6741]
[1770218938062,3.96345198,93.239,93.176,2.28682083]
[1770218938372,3.96345198,93.258,93.188,9.6728]
[1770218938565,3.96345198,93.258,93.176,2.28682083]
[1770218938766,3.96345198,93.279,93.176,2.28682083]
[1770218938970,3.96345198,93.279,93.15,169.8806]
[1770218938971,3.96345198,93.279,93.202,2.28682083]
[1770218939465,3.96345198,93.277,93.202,2.28682083]
[1770218939866,3.96345198,93.274,93.205,9.671]
[1770218940365,3.96345198,93.274,93.202,2.28682083]
[1770218940973,9.6643,93.27,93.204,2.24685868]
[1770218941170,3.96345198,93.269,93.204,2.24685868]
[1770218941468,3.96345198,93.269,93.207,9.6708]
[1770218941672,3.96345198,93.269,93.204,2.24685868]
[1770218942669,3.96345198,93.269,93.21,9.6704]
[1770218942870,3.96345198,93.269,93.204,2.24685868]
[1770218944173,3.96345198,93.269,93.119,25.70577544]
[1770218944174,3.96345198,93.308,93.227,2.08173912]
[1770218944774,3.96345198,93.289,93.205,2.08173912]
[1770218945673,3.96345198,93.287,93.205,2.08173912]
[1770218945868,3.96345198,93.328,93.221,2.12729996]
[1770218946073,3.96345198,93.328,93.204,150.4399]
[1770218946074,3.96345198,93.328,93.241,2.12729996]
[1770218946273,3.96345198,93.328,93.266,9.6647]
[1770218946676,3.96345198,93.349,93.265,2.12729996]
[1770218946867,3.96345198,93.349,93.282,9.663]
[1770218947069,3.96345198,93.349,93.282,2.12729996]
[1770218947866,3.96345198,93.379,93.282,2.12729996]
[1770218948177,3.96345198,93.376,93.251,2.04345575]
[1770218948766,3.96345198,93.376,93.25,7.90814281]
[1770218948767,3.96345198,93.356,93.27,2.04345575]
[1770218949174,3.96345198,93.356,93.282,9.663]
[1770218949369,3.96345198,93.356,93.283,2.04345575]
[1770218949878,3.96345198,93.385,93.283,2.04345575]
[1770218950069,3.96345198,93.385,93.287,2.00527176]
[1770218950268,3.96345198,93.378,93.287,2.00527176]
[1770218950779,3.96345198,93.374,93.287,2.00527176]
[1770218951175,9.6544,93.366,93.289,9.6623]
[1770218951375,3.96345198,93.365,93.29,2.00527176]
[1770218951776,3.96345198,93.365,93.294,9.6618]
[1770218951979,3.96345198,93.365,93.295,2.05893883]
[1770218952680,3.96345198,93.365,93.297,2.05893883]
[1770218953279,3.96345198,93.365,93.299,2.05893883]
[1770218953677,3.96345198,93.385,93.299,2.05893883]
[1770218953981,3.96345198,93.381,93.301,2.56438268]
[1770218954377,3.96345198,93.379,93.301,2.56438268]
[1770218954577,3.96345198,93.379,93.28,2.56438268]
[1770218954974,3.96345198,93.373,93.28,2.56438268]
[1770218955378,13.61935198,93.351,93.28,2.56438268]
[1770218955977,3.96345198,93.351,93.28,2.56438268]
[1770218956478,3.96345198,93.372,93.294,2.69800096]
[1770218956980,3.96345198,93.369,93.294,2.69800096]
[1770218957586,7.90814281,93.41,93.294,2.69800096]
[1770218957587,3.96345198,93.409,93.294,2.69800096]
[1770218957779,9.6514,93.395,93.325,2.80997611]
[1770218958083,3.96345198,93.409,93.325,2.80997611]
[1770218958480,9.6509,93.4,93.329,2.80997611]
[1770218958785,3.96345198,93.4,93.329,2.80997611]
[1770218958979,3.96345198,93.4,93.33,9.6581]
[1770218959179,3.96345198,93.4,93.331,2.80997611]
[1770218959581,3.96345198,93.4,93.34,9.657]
[1770218959784,3.96345198,93.4,93.331,2.80997611]
[1770218960785,3.96345198,93.4,93.344,9.6566]
[1770218960980,3.96345198,93.42,93.345,2.80200562]
[1770218961383,3.96345198,93.42,93.357,9.6552]
[1770218961585,3.96345198,93.42,93.345,2.80200562]
[1770218962181,3.96345198,93.418,93.345,2.80200562]
[1770218962685,3.96345198,93.418,93.348,9.6562]
[1770218962885,3.96345198,93.418,93.349,2.80818546]
[1770218963087,3.96345198,93.449,93.349,2.80818546]
[1770218963281,3.96345198,93.443,93.372,9.6537]
[1770218963488,3.96345198,93.443,93.373,2.80818546]
[1770218963681,3.68455794,93.479,93.373,2.80818546]
[1770218963884,3.68455794,93.466,93.36,2.80984644]
[1770218964087,3.68455794,93.448,93.36,2.80984644]
[1770218964486,3.68455794,93.427,93.336,2.80984644]
[1770218965090,9.6502,93.407,93.336,2.80984644]
[1770218965282,13.33475794,93.407,93.336,2.80984644]
[1770218965489,3.68455794,93.406,93.316,2.80984644]
[1770218965891,3.68455794,93.393,93.322,9.6589]
[1770218966494,3.68455794,93.393,93.324,9.6586]
[1770218966891,3.68455794,93.393,93.28,2.79342053]
[1770218967194,3.68455794,93.369,93.293,2.79342053]
[1770218967587,3.68455794,93.397,93.322,2.80330536]
[1770218967791,3.68455794,93.419,93.341,2.80330536]
[1770218968400,3.68455794,93.406,93.341,2.80330536]
[1770218968897,3.68455794,93.406,93.329,9.6581]
[1770218969095,3.68455794,93.403,93.32,2.80330536]
[1770218970294,3.68455794,93.399,93.301,2.72911132]
[1770218970889,9.6526,93.383,93.303,2.72911132]
[1770218971090,3.68455794,93.382,93.303,2.72911132]
[1770218971294,3.68455794,93.402,93.321,2.72911132]
[1770218971595,3.68455794,93.439,93.321,2.72911132]
[1770218971895,9.649,93.419,93.334,9.6576]
[1770218972093,7.87328682,93.44,93.335,2.93497769]
[1770218972094,3.68455794,93.418,93.335,2.93497769]
[1770218972494,3.68455794,93.418,93.347,2.93497769]
[1770218973696,3.68455794,93.418,93.321,3.00655013]
[1770218973898,3.68455794,93.417,93.321,3.00655013]
[1770218974389,9.6517,93.392,93.321,3.00655013]
[1770218974588,13.33625794,93.392,93.321,3.00655013]
[1770218975191,3.68455794,93.392,93.321,3.00655013]
[1770218975792,3.68455794,93.413,93.321,3.00655013]
[1770218976394,3.68455794,93.413,93.345,9.6565]
[1770218977194,3.68455794,93.413,93.34,2.96473289]
[1770218977195,3.68455794,93.41,93.335,9.6576]
[1770218977399,3.68455794,93.41,93.321,2.96473289]
[1770218978102,3.68455794,93.41,93.336,9.6574]
[1770218978692,3.68455794,93.41,93.32,7.87328682]
[1770218978693,3.68455794,93.41,93.337,2.99473241]
[1770218978900,32.08,93.439,93.347,2.99473241]
[1770218978901,3.68455794,93.439,93.347,2.99473241]
[1770218979305,3.68455794,93.409,93.321,2.99473241]
[1770218979507,3.68455794,93.409,93.301,2.99473241]
[1770218979705,3.68455794,93.399,93.301,2.99473241]
[1770218980005,3.68455794,93.399,93.314,3.02434126]
[1770218980406,3.68455794,93.398,93.293,3.02434126]
[1770218980798,3.68455794,93.376,93.293,3.02434126]
[1770218981407,3.68455794,93.368,93.293,3.02434126]
[1770218982001,3.68455794,93.352,93.261,2.94497888]
[1770218982506,3.68455794,93.373,93.261,2.94497888]
[1770218983003,3.68455794,93.372,93.305,9.6607]
[1770218983209,3.68455794,93.372,93.291,2.94497888]
[1770218983708,3.68455794,93.372,93.305,2.94497888]
[1770218983910,3.68455794,93.372,93.28,7.87328682]
[1770218983911,3.68455794,93.416,93.321,2.87970084]
[1770218984303,3.68455794,93.416,93.28,7.87328682]
[1770218984304,3.68455794,93.416,93.341,2.87970084]
[1770218984503,3.68455794,93.436,93.341,2.87970084]
[1770218984908,3.68455794,93.436,93.364,9.6546]
[1770218985209,3.68455794,93.436,93.361,2.87970084]
[1770218985998,3.68455794,93.436,93.362,9.6547]
[1770218986208,3.68455794,93.436,93.363,2.34291299]
[1770218986905,3.68455794,93.436,93.384,9.6525]
[1770218987108,3.68455794,93.462,93.363,2.34291299]
[1770218987512,3.68455794,93.459,93.382,9.6527]
[1770218987708,3.68455794,93.459,93.383,2.34291299]
[1770218988206,3.68455794,93.459,93.386,2.20498426]
[1770218989106,3.68455794,93.479,93.393,2.20498426]
[1770218990609,3.68455794,93.445,93.371,2.35051564]
[1770218991204,3.68455794,93.445,93.384,9.6525]
[1770218991407,3.68455794,93.445,93.371,2.35051564]
[1770218991603,3.68455794,93.445,93.348,2.35051564]
[1770218991818,3.68455794,93.413,93.324,2.38421626]
[1770218993010,3.68455794,93.413,93.335,9.6576]
[1770218993210,3.68455794,93.413,93.335,12.04181626]
[1770218993409,3.68455794,93.413,93.28,150.3169]
[1770218993410,3.68455794,93.413,93.336,2.38421626]
[1770218994309,3.99196746,93.4,93.311,2.3911666]
[1770218994514,3.99196746,93.389,93.281,2.3911666]
[1770218994813,3.99196746,93.389,93.313,2.3911666]
[1770218995213,3.99196746,93.429,93.313,2.3911666]
[1770218995509,3.99196746,93.429,93.344,2.3911666]
[1770218996913,3.99196746,93.429,93.356,2.42766585]
[1770218997307,3.99196746,93.467,93.356,2.42766585]
[1770218997514,3.99196746,93.45,93.377,9.6532]
[1770218997703,3.99196746,93.45,93.377,2.48777679]
[1770218999115,3.99196746,93.45,93.38,2.48777679]
[1770218999508,3.99196746,93.45,93.38,12.14067679]
[1770218999910,3.99196746,93.45,93.36,7.87328682]
[1770219000110,7.87328682,93.47,93.358,2.49765276]
[1770219000111,3.76983417,93.448,93.358,2.49765276]
[1770219000512,3.76983417,93.448,93.262,150.3461]
[1770219000513,3.76983417,93.448,93.386,2.49765276]
[1770219000813,3.76983417,93.468,93.386,2.49765276]
[1770219001318,3.76983417,93.479,93.365,2.49765276]
[1770219001519,3.76983417,93.459,93.365,2.49765276]
[1770219001716,3.76983417,93.433,93.343,2.49765276]
[1770219001914,3.76983417,93.433,93.282,150.3142]
[1770219001915,3.76983417,93.419,93.321,2.49715887]
[1770219002114,3.76983417,93.442,93.372,9.6537]
[1770219002312,3.76983417,93.439,93.281,2.49715887]
[1770219002508,3.76983417,93.439,93.331,2.49715887]
[1770219002708,3.76983417,93.439,93.382,9.6527]
[1770219002917,3.76983417,93.439,93.373,2.49715887]
[1770219002918,3.76983417,93.462,93.373,2.49715887]
[1770219003419,3.76983417,93.439,93.352,2.49715887]
[1770219003915,3.76983417,93.461,93.361,2.49008638]
[1770219004116,3.76983417,93.484,93.381,2.49008638]
[1770219004314,3.76983417,93.507,93.401,2.49008638]
[1770219004515,3.76983417,93.491,93.379,2.49008638]
[1770219004710,3.76983417,93.479,93.379,2.49008638]
[1770219005120,3.76983417,93.467,93.36,7.87328682]
[1770219005418,3.76983417,93.459,93.361,2.49008638]
[1770219005609,3.76983417,93.459,93.4,9.6508]
[1770219005810,3.76983417,93.459,93.384,2.49008638]
[1770219006013,9.641,93.497,93.41,9.6498]
[1770219006211,3.76983417,93.496,93.41,9.6498]
[1770219006418,3.76983417,93.519,93.421,2.65006141]
[1770219006718,3.76983417,93.499,93.4,2.65006141]
[1770219007116,3.76983417,93.493,93.4,2.65006141]
[1770219007416,3.76983417,93.479,93.377,2.65006141]
[1770219007917,3.76983417,93.473,93.377,2.65006141]
[1770219008217,3.76983417,93.499,93.401,2.64594387]
[1770219009117,3.76983417,93.531,93.433,2.64594387]
[1770219009321,3.76983417,93.531,93.441,2.64594387]
[1770219009521,3.76983417,93.559,93.461,2.64594387]
[1770219009719,3.76983417,93.556,93.461,2.64594387]
[1770219010316,3.76983417,93.549,93.463,9.6443]
[1770219010518,3.76983417,93.549,93.461,2.64594387]
[1770219010713,3.76983417,93.546,93.46,9.6447]
[1770219011022,3.76983417,93.546,93.441,2.85871365]
[1770219011221,3.76983417,93.546,93.461,2.85871365]
[1770219011919,3.76983417,93.546,93.48,7.87328682]
[1770219012121,3.76983417,93.546,93.461,2.85871365]
[1770219012323,3.76983417,93.579,93.505,9.64]
[1770219012522,3.76983417,93.579,93.481,2.9401616]
[1770219013025,3.76983417,93.565,93.481,2.9401616]
[1770219013220,3.76983417,93.565,93.451,2.9401616]
[1770219013421,3.76983417,93.529,93.451,2.9401616]
[1770219014526,3.76983417,93.503,93.416,9.6491]
[1770219014827,3.76983417,93.503,93.417,3.12872108]
[1770219015022,3.76983417,93.503,93.434,9.6473]
[1770219015428,3.76983417,93.503,93.423,9.6485]
[1770219015625,3.76983417,93.503,93.417,3.12872108]
[1770219016230,8.13497641,93.585,93.383,150.1518]
[1770219016231,3.76983417,93.531,93.447,3.24606928]
[1770219016631,3.76983417,93.509,93.425,3.24606928]
[1770219017033,3.76983417,93.509,93.391,3.24606928]
[1770219017034,3.76983417,93.508,93.391,3.24606928]
[1770219017223,3.76983417,93.483,93.395,9.6513]
[1770219017628,3.76983417,93.483,93.37,11.1193561]
[1770219017938,3.76983417,93.459,93.347,3.28902603]
[1770219018231,3.76983417,93.458,93.347,3.28902603]
[1770219018529,19.2817,93.498,93.331,3.28902603]
[1770219018530,3.76983417,93.436,93.331,3.28902603]
[1770219018935,3.76983417,93.436,93.355,3.28902603]
[1770219019532,3.76983417,93.436,93.276,150.3248]
[1770219019533,3.76983417,93.436,93.332,3.28902603]
[1770219019729,3.76983417,93.436,93.31,7.87328682]
[1770219019730,3.76983417,93.418,93.311,3.28902603]
[1770219019929,3.76983417,93.418,93.333,9.6577]
[1770219020131,3.76983417,93.418,93.311,3.28902603]
[1770219020431,3.76983417,93.418,93.31,7.87328682]
[1770219020432,3.76983417,93.418,93.344,3.31479405]
[1770219021139,3.76983417,93.444,93.368,9.6542]
[1770219021437,3.76983417,93.444,93.351,3.31479405]
[1770219021628,3.76983417,93.444,93.35,7.87259085]
[1770219021629,3.76983417,93.466,93.378,3.31479405]
[1770219022035,3.76983417,93.466,93.391,3.39933755]
[1770219022235,3.76983417,93.491,93.411,3.39933755]
[1770219022435,3.76983417,93.491,93.389,3.39933755]
[1770219022935,3.76983417,93.472,93.366,3.39933755]
[1770219023634,3.76983417,93.456,93.366,3.39933755]
[1770219024934,3.73684496,93.454,93.366,3.39933755]
[1770219025537,3.73684496,93.454,93.367,9.6543]
[1770219025732,3.73684496,93.454,93.366,3.39933755]
[1770219025934,3.73684496,93.454,93.39,9.6519]
[1770219026240,9.6428,93.479,93.401,3.44035596]
[1770219026241,3.73684496,93.479,93.401,3.44035596]
[1770219026434,8.20761589,93.545,93.42,9.6487]
[1770219026740,3.73684496,93.519,93.401,3.44035596]
[1770219026938,3.73684496,93.494,93.407,9.6501]
[1770219027238,3.73684496,93.494,93.401,3.44035596]
[1770219027536,3.73684496,93.494,93.429,9.6478]
[1770219027741,3.73684496,93.494,93.401,3.44035596]
[1770219029033,3.73684496,93.491,93.38,11.37027199]
[1770219029233,3.73684496,93.469,93.355,3.49768114]
[1770219029537,3.73684496,93.469,93.402,3.49768114]
[1770219029733,3.73684496,93.49,93.402,3.49768114]
[1770219030131,3.73684496,93.49,93.418,9.649]